[Event "45th National Sub Junior 2019"]
[Site "Tiruchengode"]
[Date "2019.07.10"]
[Round "3.10"]
[White "Srujan, Keerthan Solletti"]
[Black "Srihari, L."]
[Result "0-1"]
[ECO "B99"]
[WhiteElo "1784"]
[BlackElo "2077"]
[Annotator "NA"]
[PlyCount "66"]
[EventDate "2019.07.09"]
[EventCountry "IND"]
[SourceTitle "playchess.com"]
[Source "ChessBase"]
[SourceQuality "1"]
[TimeControl "5400+30"]

1. e4 {[%emt 0:00:00]} c5 {[%emt 0:00:00]} 2. Nf3 {[%emt 0:00:13]} d6 {[%emt 0:00:00]} 3. d4 {[%emt 0:04:05]} cxd4 {[%emt 0:00:00]} 4. Nxd4 {[%emt 0:00:05]} Nf6 {[%emt 0:00:00]} 5. Nc3 {[%emt 0:00:03]} a6 {[%emt 0:00:05]} 6. Bg5 {[%emt 0:00:03]} e6 {[%emt 0:00:06]} 7. f4 {[%emt 0:00:03]} Nbd7 {[%emt 0:00:05]} 8. Qf3 {[%emt 0:00:04]} Qc7 {[%emt 0:00:30]} 9. g4 {[%emt 0:00:36]} b5 {[%emt 0:01:00]} 10. Bxf6 {[%emt 0:00:10]} Nxf6 {[%emt 0:02:28]} 11. g5 {[%emt 0:00:11]} Nd7 {[%emt 0:00:22]} 12. a3 {[%emt 0:00:04]} Bb7 {[%emt 0:02:42]} 13. O-O-O {[%emt 0:03:10]} Be7 {[%emt 0:03:12]} 14. h4 {[%emt 0:00:04]} O-O-O {[%emt 0:25:55]} 15. Bh3 {[%emt 0:02:42]} Kb8 {[%emt 0:02:12]} 16. Bxe6 {[%emt 0:01:07]} fxe6 {[%emt 0:00:44]} 17. Nxe6 {[%emt 0:00:19]} Qc4 {[%emt 0:02:41]} 18. Nxd8 {[%emt 0:00:14]} Rxd8 {[%emt 0:00:04]} 19. Nd5 {[%emt 0:06:27]} Bxd5 {[%emt 0:07:46]} 20. exd5 {[%emt 0:00:37]} Rc8 {[%emt 0:00:27]} 21. Rh2 {[%emt 0:03:45]} Qa2 {[%emt 0:01:19]} 22. c3 {[%emt 0:01:02]} Nc5 {[%emt 0:00:54]} 23. f5 {[%emt 0:04:02]} a5 {[%emt 0:02:32]} 24. Qe2 {[%emt 0:01:20]} Bd8 {[%emt 0:01:52]} 25. Qxb5+ {[%emt 0:03:11]} Ka7 {[%emt 0:00:36]} 26. Re2 {[%emt 0:15:19]} Rb8 {[%emt 0:02:47]} 27. Qc6 {[%emt 0:00:10]} Qa1+ {[%emt 0:04:48]} 28. Kd2 {[%emt 0:01:58]} Qxb2+ {[%emt 0:07:40]} 29. Ke1 {[%emt 0:00:24]} Qxc3+ {[%emt 0:00:10]} 30. Kf2 {[%emt 0:00:03]} Ne4+ {[%emt 0:02:40]} 31. Kg2 {[%emt 0:09:16]} Qg3+ {[%emt 0:00:09]} 32. Kf1 {[%emt 0:00:05]} Qf3+ {[%emt 0:00:14]} 33. Ke1 {[%emt 0:00:07]} Qh1# {[%emt 0:00:05]} 0-1

[Event "45th National Sub Junior 2019"]
[Site "Tiruchengode"]
[Date "2019.07.11"]
[Round "4.1"]
[White "Srihari, L."]
[Black "Pranesh M"]
[Result "1/2-1/2"]
[ECO "C54"]
[WhiteElo "2077"]
[BlackElo "2343"]
[Annotator "RC"]
[PlyCount "135"]
[EventDate "2019.07.09"]
[EventCountry "IND"]
[TimeControl "5400+30"]

1. e4 {[%emt 0:00:00]} e5 {[%emt 0:00:00]} 2. Nf3 {[%emt 0:00:00]} Nc6 {[%emt 0:00:00]} 3. Bc4 {[%emt 0:00:00]} Nf6 {[%emt 0:00:00]} 4. d3 {[%emt 0:00:28]} Bc5 {[%emt 0:00:00]} 5. c3 {[%emt 0:00:06]} O-O {[%emt 0:00:24]} 6. O-O {[%emt 0:01:34]} d6 {[%emt 0:00:16]} 7. Bb3 {[%emt 0:00:08]} h6 {[%emt 0:00:29]} 8. Nbd2 {[%emt 0:01:22]} a6 {[%emt 0:00:40]} 9. h3 {[%emt 0:00:10]} Ba7 {[%emt 0:01:00]} 10. Nc4 {[%emt 0:02:04]} Be6 {[%emt 0:02:31]} 11. Re1 {[%emt 0:13:52]} Re8 {[%emt 0:01:44]} 12. Be3 {[%emt 0:08:37]} b5 {[%emt 0:01:21]} 13. Ncd2 {[%emt 0:01:10]} Bxe3 {[%emt 0:01:18]} 14. Rxe3 {[%emt 0:00:23]} d5 {[%emt 0:01:00]} 15. exd5 {[%emt 0:00:59]} Nxd5 {[%emt 0:03:33]} 16. Bxd5 {[%emt 0:01:34]} Qxd5 {[%emt 0:00:46]} 17. Qe1 {[%emt 0:12:04]} f6 {[%emt 0:01:48]} 18. c4 {[%emt 0:06:46]} bxc4 {[%emt 0:04:25]} 19. dxc4 {[%emt 0:01:24]} Qa5 {[%emt 0:01:52]} 20. a3 {[%emt 0:04:25]} Red8 {[%emt 0:03:47]} 21. b4 {[%emt 0:02:16]} Qb6 {[%emt 0:01:21]} 22. Rc1 {[%emt 0:03:00]} Nd4 {[%emt 0:08:30]} 23. Nxd4 {[%emt 0:10:26]} Rxd4 {[%emt 0:01:06]} 24. Ne4 {[%emt 0:09:58]} Rxc4 {[%emt 0:02:03]} 25. Nxf6+ {[%emt 0:01:09]} Kh8 {[%emt 0:02:36]} 26. Rxc4 {[%emt 0:00:45]} Bxc4 {[%emt 0:00:05]} 27. Nd7 {[%emt 0:00:22]} Qe6 {[%emt 0:01:10]} 28. Nxe5 {[%emt 0:00:27]} Bd5 {[%emt 0:00:06]} 29. Qc3 {[%emt 0:02:22]} c6 {[%emt 0:01:08]} 30. Rg3 {[%emt 0:00:30]} Qf6 {[%emt 0:01:21]} 31. Ng6+ {[%emt 0:05:30]} Kg8 {[%emt 0:01:07]} 32. Qxf6 {[%emt 0:02:19]} gxf6 {[%emt 0:00:04]} 33. Ne7+ {[%emt 0:00:40]} Kf7 {[%emt 0:00:29]} 34. Nf5 {[%emt 0:00:15]} h5 {[%emt 0:00:28]} 35. Re3 {[%emt 0:01:56]} a5 {[%emt 0:00:42]} 36. Nd6+ {[%emt 0:04:58]} Kf8 {[%emt 0:00:40]} 37. b5 {[%emt 0:01:27]} cxb5 {[%emt 0:00:39]} 38. Nxb5 {[%emt 0:00:04]} Rb8 {[%emt 0:00:22]} 39. Nc3 {[%emt 0:00:07]} Bf7 {[%emt 0:03:17]} 40. Ne4 {[%emt 0:01:37]} Rb6 {[%emt 0:00:34]} 41. Kh2 {[%emt 0:00:22]} Kg7 {[%emt 0:01:43]} 42. Kg3 {[%emt 0:00:45]} Bd5 {[%emt 0:00:24]} 43. Nc3 {[%emt 0:01:16]} Bb7 {[%emt 0:00:52]} 44. Ne2 {[%emt 0:00:16]} Kh6 {[%emt 0:05:44]} 45. h4 {[%emt 0:00:18]} Bd5 {[%emt 0:01:33]} 46. Nf4 {[%emt 0:00:19]} Bf7 {[%emt 0:00:17]} 47. Rc3 {[%emt 0:01:19]} Rb5 {[%emt 0:01:53]} 48. f3 {[%emt 0:00:19]} Kg7 {[%emt 0:06:11]} 49. Rc7 {[%emt 0:00:13]} Kf8 {[%emt 0:00:30]} 50. Ra7 {[%emt 0:00:07]} Rc5 {[%emt 0:01:13]} 51. Kf2 {[%emt 0:01:19]} Rc2+ {[%emt 0:00:09]} 52. Ke3 {[%emt 0:01:13]} Rc3+ {[%emt 0:03:37]} 53. Ke4 {[%emt 0:00:12]} Rxa3 {[%emt 0:03:26]} 54. Kf5 {[%emt 0:00:02]} Rb3 {[%emt 0:01:29]} 55. Rxa5 {[%emt 0:00:55]} Kg7 {[%emt 0:00:15]} 56. Rc5 {[%emt 0:00:46]} Re3 {[%emt 0:00:22]} 57. Ra5 {[%emt 0:00:44]} Rb3 {[%emt 0:01:24]} 58. Ke4 {[%emt 0:00:16]} Kh6 {[%emt 0:03:16]} 59. Ra7 {[%emt 0:00:20]} Bg6+ {[%emt 0:00:33]} 60. Kd5 {[%emt 0:00:33]} Rb4 {[%emt 0:00:12]} 61. g3 {[%emt 0:00:12]} Rb3 {[%emt 0:00:40]} 62. Ke6 {[%emt 0:00:19]} Rxf3 {[%emt 0:01:04]} 63. Kxf6 {[%emt 0:00:43]} Rxg3 {[%emt 0:00:23]} 64. Rg7 {[%emt 0:01:11]} Rf3 {[%emt 0:00:06]} 65. Rxg6+ {[%emt 0:00:17]} Kh7 {[%emt 0:00:02]} 66. Rg7+ {[%emt 0:00:40]} Kh6 {[%emt 0:00:10]} 67. Rg6+ {[%emt 0:00:14]} Kh7 {[%emt 0:00:07]} 68. Rg7+ {[%emt 0:01:00]} 1/2-1/2

[Event "45th National Sub Junior 2019"]
[Site "Tiruchengode"]
[Date "2019.07.11"]
[Round "4.2"]
[White "Rohith Krishna S"]
[Black "Srikrishnan P"]
[Result "*"]
[ECO "A46"]
[WhiteElo "2312"]
[BlackElo "1990"]
[Annotator "NA"]
[PlyCount "43"]
[EventDate "2019.07.09"]
[EventCountry "IND"]
[SourceTitle "playchess.com"]
[Source "ChessBase"]
[SourceQuality "1"]
[TimeControl "5400+30"]

{[%evp 22,36,-8,-20,13,14,20,22,23,10,25,34,17,32767,11,14,66]} 1. Nf3 {[%emt 0:00:00]} Nf6 {[%emt 0:00:00]} 2. g3 {[%emt 0:00:00]} b5 {[%emt 0:01:14]} 3. Bg2 {[%emt 0:00:09]} Bb7 {[%emt 0:00:05]} 4. O-O {[%emt 0:00:08]} e6 {[%emt 0:00:20]} 5. b3 {[%emt 0:00:10]} Be7 {[%emt 0:01:03]} 6. Bb2 {[%emt 0:00:08]} O-O {[%emt 0:02:04]} 7. d4 {[%emt 0:01:57]} c5 {[%emt 0:03:42]} 8. Nbd2 {[%emt 1:31:28]} cxd4 {[%emt 1:25:32]} 9. Bxd4 {[%emt 0:00:06]} Nc6 {[%emt 0:01:02]} 10. Bb2 {[%emt 0:00:08]} d5 {[%emt 0:07:29]} 11. c4 {[%emt 0:02:35]} bxc4 {[%emt 0:08:37]} 12. bxc4 {[%emt 0:01:02]} dxc4 {[%emt 0:00:20]} 13. Nxc4 {[%emt 0:02:23]} Qc7 {[%emt 0:06:12]} 14. Rc1 {[%emt 1:27:44]} Rac8 {[%emt 0:05:48]} 15. Qa4 {[%emt 1:26:09]} Qb8 {[%emt 0:05:19]} 16. Ba1 {[%emt 0:09:13]} Qa8 {[%emt 0:03:52]} 17. Bxf6 {[%emt 0:08:49]} gxf6 {[%emt 0:01:29]} 18. Ne3 {[%emt 0:00:58]} Kh8 $14 {[%emt 0:13:31]} ({Better is} 18... Nb4 $11) 19. Rfd1 {[%emt 1:01:39]} Rfd8 {[%emt 0:09:05]} 20. Qh4 {[%emt 0:02:22]} Rd5 {[%emt 0:27:46]} 21. Rd2 Rxd2 {[%emt 0:00:00]} 22. Rd1 {[%emt 0:00:34]} *

[Event "45th National Sub Junior 2019"]
[Site "Tiruchengode"]
[Date "2019.07.11"]
[Round "4.2"]
[White "Rohith Krishna S"]
[Black "Srikrishnan P"]
[Result "1-0"]
[ECO "A46"]
[WhiteElo "2312"]
[BlackElo "1990"]
[Annotator "NA"]
[PlyCount "207"]
[EventDate "2019.07.09"]
[EventCountry "IND"]
[SourceTitle "playchess.com"]
[Source "ChessBase"]
[SourceQuality "1"]
[TimeControl "5400+30"]

1. Nf3 {[%emt 0:00:00]} Nf6 {[%emt 0:00:00]} 2. g3 {[%emt 0:00:00]} b5 {[%emt 0:01:14]} 3. Bg2 {[%emt 0:00:09]} Bb7 {[%emt 0:00:05]} 4. O-O {[%emt 0:00:08]} e6 {[%emt 0:00:20]} 5. b3 {[%emt 0:00:10]} Be7 {[%emt 0:01:03]} 6. Bb2 {[%emt 0:00:08]} O-O {[%emt 0:02:04]} 7. d4 {[%emt 0:01:57]} c5 {[%emt 0:03:42]} 8. Nbd2 {[%emt 0:00:30]} cxd4 {[%emt 0:01:02]} 9. Bxd4 {[%emt 0:00:06]} Nc6 {[%emt 0:01:02]} 10. Bb2 {[%emt 0:00:08]} d5 {[%emt 0:07:29]} 11. c4 {[%emt 0:02:35]} bxc4 {[%emt 0:08:37]} 12. bxc4 {[%emt 0:01:02]} dxc4 {[%emt 0:00:20]} 13. Nxc4 {[%emt 0:02:23]} Qc7 {[%emt 0:06:12]} 14. Rc1 {[%emt 0:02:05]} Rac8 {[%emt 0:05:48]} 15. Qa4 {[%emt 0:07:30]} Qb8 {[%emt 0:05:19]} 16. Ba1 {[%emt 0:09:13]} Qa8 {[%emt 0:03:52]} 17. Bxf6 {[%emt 0:08:49]} gxf6 {[%emt 0:01:29]} 18. Ne3 {[%emt 0:00:58]} Kh8 $14 {[%emt 0:13:31]} ({Better is} 18... Nb4 $11) 19. Rfd1 {[%emt 0:04:39]} Rfd8 {[%emt 0:09:05]} 20. Qh4 {[%emt 0:02:22]} Rxd1+ {[%emt 0:02:38]} 21. Rxd1 {[%emt 0:00:04]} Rd8 {[%emt 0:00:09]} 22. Rb1 {[%emt 0:00:05]} Rd7 {[%emt 0:03:30]} 23. Qh5 {[%emt 0:07:13]} Qg8 {[%emt 0:02:28]} 24. Qb5 {[%emt 0:01:37]} Qc8 {[%emt 0:05:41]} 25. Rc1 {[%emt 0:03:40]} Rc7 {[%emt 0:00:22]} 26. Qc4 {[%emt 0:01:48]} Bd8 {[%emt 0:03:27]} 27. Rd1 {[%emt 0:05:07]} Ne5 {[%emt 0:01:06]} 28. Nxe5 {[%emt 0:03:43]} Rxc4 {[%emt 0:01:43]} 29. Bxb7 {[%emt 0:03:37]} Qxb7 {[%emt 0:02:10]} 30. Rxd8+ {[%emt 0:00:10]} Kg7 {[%emt 0:00:02]} 31. N5xc4 {[%emt 0:00:06]} Qb1+ {[%emt 0:00:02]} 32. Kg2 {[%emt 0:00:10]} Qxa2 {[%emt 0:00:09]} 33. Rd2 {[%emt 0:00:28]} Qa1 {[%emt 0:00:59]} 34. Rd3 {[%emt 0:00:43]} Qb1 {[%emt 0:00:49]} 35. Ra3 {[%emt 0:00:13]} Qb7+ {[%emt 0:00:33]} 36. f3 {[%emt 0:00:08]} Qd7 {[%emt 0:00:56]} 37. Kf2 {[%emt 0:00:23]} Qd4 {[%emt 0:00:17]} 38. Ke1 {[%emt 0:01:04]} Qc5 {[%emt 0:00:25]} 39. Ra5 {[%emt 0:00:23]} Qd4 {[%emt 0:00:13]} 40. Kf2 {[%emt 0:00:29]} Kg8 {[%emt 0:00:36]} 41. Rb5 {[%emt 0:00:19]} Kg7 {[%emt 0:00:27]} 42. Rb3 {[%emt 0:00:47]} Qc5 {[%emt 0:00:10]} 43. Rd3 {[%emt 0:00:35]} Kg8 {[%emt 0:03:04]} 44. Rd7 {[%emt 0:00:16]} a6 {[%emt 0:01:37]} 45. Rd6 {[%emt 0:00:07]} Qa7 {[%emt 0:00:19]} 46. Ke1 {[%emt 0:01:32]} a5 {[%emt 0:00:23]} 47. Rd3 {[%emt 0:00:11]} Qc5 {[%emt 0:00:28]} 48. Kd2 {[%emt 0:00:50]} Qb4+ {[%emt 0:00:21]} 49. Rc3 {[%emt 0:00:09]} a4 {[%emt 0:00:14]} 50. g4 {[%emt 0:00:12]} a3 {[%emt 0:01:25]} 51. Nxa3 {[%emt 0:00:27]} Qd6+ {[%emt 0:00:02]} 52. Rd3 {[%emt 0:00:08]} Qxh2 {[%emt 0:00:08]} 53. Nac4 {[%emt 0:00:13]} Qb8 {[%emt 0:00:06]} 54. Kc3 {[%emt 0:00:36]} Qb1 {[%emt 0:00:26]} 55. Nc2 {[%emt 0:00:19]} Qb8 {[%emt 0:00:37]} 56. Nb4 {[%emt 0:00:29]} Qh2 {[%emt 0:00:15]} 57. Rd2 {[%emt 0:00:38]} Qc7 {[%emt 0:00:55]} 58. Na6 {[%emt 0:00:51]} Qh2 {[%emt 0:02:05]} 59. Nc5 {[%emt 0:01:16]} h5 {[%emt 0:00:26]} 60. gxh5 {[%emt 0:00:09]} Qxh5 {[%emt 0:00:23]} 61. Ne4 {[%emt 0:00:21]} Qg6 {[%emt 0:00:44]} 62. Rd8+ {[%emt 0:01:06]} Kh7 {[%emt 0:01:01]} 63. Rd7 {[%emt 0:00:11]} f5 {[%emt 0:00:15]} 64. Rxf7+ {[%emt 0:02:58]} Kh8 {[%emt 0:01:37]} 65. Ned6 {[%emt 0:04:38]} Qg1 {[%emt 0:00:18]} 66. Rb7 {[%emt 0:00:49]} Qe1+ {[%emt 0:00:34]} 67. Kd3 {[%emt 0:00:09]} Qd1+ {[%emt 0:00:07]} 68. Nd2 {[%emt 0:00:55]} Qa1 {[%emt 0:00:02]} 69. N6c4 {[%emt 0:01:14]} Qa8 {[%emt 0:00:46]} 70. Rd7 {[%emt 0:00:19]} Qc6 {[%emt 0:00:42]} 71. Rd6 {[%emt 0:00:31]} Qc5 {[%emt 0:00:03]} 72. f4 {[%emt 0:00:42]} Kg8 {[%emt 0:01:18]} 73. Rd7 {[%emt 0:00:40]} Qc6 {[%emt 0:00:45]} 74. Ne5 {[%emt 0:00:26]} Qb5+ {[%emt 0:00:02]} 75. Ndc4 {[%emt 0:00:08]} Qb3+ {[%emt 0:00:04]} 76. Kd2 {[%emt 0:00:32]} Qa2+ {[%emt 0:00:17]} 77. Ke3 {[%emt 0:00:31]} Qb3+ {[%emt 0:00:09]} 78. Kf2 {[%emt 0:00:20]} Qh3 {[%emt 0:00:19]} 79. Nd2 {[%emt 0:00:30]} Qh2+ {[%emt 0:00:08]} 80. Ke3 {[%emt 0:00:04]} Qg1+ {[%emt 0:00:09]} 81. Kd3 {[%emt 0:00:05]} Qb6 {[%emt 0:00:29]} 82. Ndf3 {[%emt 0:00:45]} Qb3+ {[%emt 0:00:08]} 83. Kd4 {[%emt 0:00:20]} Qd1+ {[%emt 0:00:39]} 84. Ke3 {[%emt 0:00:10]} Qc1+ {[%emt 0:00:02]} 85. Rd2 {[%emt 0:00:05]} Qc5+ {[%emt 0:00:16]} 86. Nd4 {[%emt 0:00:21]} Qc3+ {[%emt 0:00:02]} 87. Rd3 {[%emt 0:00:35]} Qc1+ {[%emt 0:00:05]} 88. Kf3 {[%emt 0:00:14]} Qf1+ {[%emt 0:00:14]} 89. Kg3 {[%emt 0:00:15]} Qg1+ {[%emt 0:00:22]} 90. Kh4 {[%emt 0:01:31]} Kf8 {[%emt 0:04:29]} 91. Nxe6+ {[%emt 0:02:10]} Ke7 {[%emt 0:00:01]} 92. Ng7 {[%emt 0:01:39]} Kf6 {[%emt 0:02:00]} 93. Nh5+ {[%emt 0:00:06]} Ke6 {[%emt 0:00:09]} 94. Rg3 {[%emt 0:00:06]} Qh2+ {[%emt 0:01:15]} 95. Kg5 {[%emt 0:00:05]} Qxe2 {[%emt 0:00:06]} 96. Ng7+ {[%emt 0:00:04]} Kd5 {[%emt 0:00:28]} 97. Nxf5 {[%emt 0:00:11]} Qe1 {[%emt 0:00:48]} 98. Rd3+ {[%emt 0:00:20]} Kc5 {[%emt 0:00:01]} 99. Kf6 {[%emt 0:00:26]} Qh1 {[%emt 0:00:06]} 100. Ke6 {[%emt 0:00:46]} Qh5 {[%emt 0:00:02]} 101. Rc3+ {[%emt 0:00:23]} Kb4 {[%emt 0:00:03]} 102. Rc4+ {[%emt 0:00:13]} Kb5 {[%emt 0:00:05]} 103. Nd6+ {[%emt 0:00:09]} Kb6 {[%emt 0:00:07]} 104. Nd7+ {[%emt 0:00:43]} 1-0

[Event "45th National Sub Junior 2019"]
[Site "Tiruchengode"]
[Date "2019.07.11"]
[Round "4.3"]
[White "Ayushh Ravikumar"]
[Black "Pranav Vijay"]
[Result "1/2-1/2"]
[ECO "E11"]
[WhiteElo "1946"]
[BlackElo "2265"]
[Annotator "NA"]
[PlyCount "161"]
[EventDate "2019.07.09"]
[EventCountry "IND"]
[SourceTitle "playchess.com"]
[Source "ChessBase"]
[SourceQuality "1"]
[TimeControl "5400+30"]

1. d4 {[%emt 0:00:00]} Nf6 {[%emt 0:00:00]} 2. Nf3 {[%emt 0:00:08]} e6 {[%emt 0:00:00]} 3. c4 {[%emt 0:00:15]} Bb4+ {[%emt 0:00:00]} 4. Bd2 {[%emt 0:01:38]} c5 {[%emt 0:01:27]} 5. a3 {[%emt 0:04:03]} Bxd2+ {[%emt 0:00:16]} 6. Nbxd2 {[%emt 0:00:07] E11: Bogo-Indian} (6. Qxd2 cxd4 7. Nxd4 O-O 8. Nc3 d5 9. e3 dxc4 10. Bxc4 Bd7 11. O-O Nc6 12. Rfd1 Nxd4 13. Qxd4 Bc6 14. Qxd8 {½-½ (14) Stupak,K (2535)-Moiseenko,A (2663) Gjakova 2016}) 6... cxd4 {[%emt 0:00:28]} 7. Nxd4 {[%emt 0:01:06]} O-O {[%emt 0:01:13]} 8. g3 {[%emt 0:01:53]} Qb6 $146 {[%emt 0:03:04]} ({Predecessor:} 8... e5 9. N4b3 d5 10. cxd5 Qxd5 11. Nf3 Qb5 12. e3 Qb6 13. Qc2 {½-½ (61) Thompson,E (1854)-Hague,B (2320) Tromsoe 2014}) 9. N2b3 {[%emt 0:05:50]} d5 {[%emt 0:02:14]} 10. c5 {[%emt 0:07:21]} Qd8 {[%emt 0:00:22]} 11. Bg2 {[%emt 0:01:15]} Bd7 {[%emt 0:01:44]} 12. O-O {[%emt 0:01:20]} e5 {[%emt 0:01:06]} 13. Nc2 {[%emt 0:05:21]} Be6 {[%emt 0:00:52]} ({Better is} 13... Ba4 $15 14. Nd2 Nbd7) 14. Rc1 {[%emt 0:03:18]} Nc6 {[%emt 0:01:34]} 15. Nb4 {[%emt 0:02:39]} (15. f4 $11) 15... a5 {[%emt 0:00:19]} 16. Nxc6 {[%emt 0:04:14]} bxc6 {[%emt 0:00:07]} 17. Nd2 {[%emt 0:01:22]} Rb8 {[%emt 0:02:18]} 18. Qc2 {[%emt 0:02:40]} Nd7 {[%emt 0:06:09]} (18... Rb5 $17 19. a4 Rb4) 19. Rb1 {[%emt 0:08:06]} Rb5 {[%emt 0:02:22]} 20. b4 {[%emt 0:01:53]} axb4 {[%emt 0:00:09]} 21. axb4 {[%emt 0:00:08]} Qb8 $11 {[%emt 0:00:08]} 22. Qc3 {[%emt 0:11:04]} Rc8 {[%emt 0:00:58]} 23. e3 {[%emt 0:01:16]} Bf5 {[%emt 0:04:08]} 24. Rb3 {[%emt 0:02:02]} Qc7 {[%emt 0:03:26]} 25. f4 {[%emt 0:03:39]} Be6 {[%emt 0:05:03]} 26. Rbb1 {[%emt 0:01:38]} f6 {[%emt 0:00:25]} 27. Rfc1 {[%emt 0:00:52]} Rbb8 {[%emt 0:04:27]} 28. Bf1 {[%emt 0:01:58]} Qd8 {[%emt 0:02:11]} 29. Bd3 {[%emt 0:02:11]} Rc7 {[%emt 0:01:55]} 30. Nb3 {[%emt 0:01:02]} d4 {[%emt 0:02:55]} 31. exd4 {[%emt 0:01:19]} exf4 {[%emt 0:00:06]} 32. Bc4 {[%emt 0:03:31]} Bxc4 {[%emt 0:00:46]} 33. Qxc4+ {[%emt 0:00:05]} Kh8 {[%emt 0:00:05]} 34. gxf4 {[%emt 0:01:14]} Nf8 {[%emt 0:00:38]} 35. Rd1 {[%emt 0:04:54]} Qd7 {[%emt 0:00:23]} 36. Qc3 {[%emt 0:06:18]} Ng6 {[%emt 0:00:21]} 37. Rf1 {[%emt 0:01:39]} Qf5 {[%emt 0:01:49]} 38. Rbe1 {[%emt 0:02:59]} Nxf4 {[%emt 0:01:26]} 39. Nc1 {[%emt 0:04:00]} g5 {[%emt 0:01:42]} 40. Ne2 {[%emt 0:01:28]} Qg4+ {[%emt 0:01:02]} 41. Ng3 {[%emt 0:00:56]} Ra7 {[%emt 0:02:50]} 42. Qf3 {[%emt 0:01:33]} Qxf3 {[%emt 0:02:03]} 43. Rxf3 {[%emt 0:00:02]} Kg7 {[%emt 0:00:09]} 44. Nf5+ {[%emt 0:00:59]} Kf7 {[%emt 0:00:14]} 45. Nd6+ {[%emt 0:00:33]} Kg6 {[%emt 0:00:06]} 46. Rb3 {[%emt 0:00:36]} Ra2 {[%emt 0:00:24]} 47. Re8 {[%emt 0:00:31]} Rxe8 {[%emt 0:01:43]} 48. Nxe8 {[%emt 0:00:01]} Ne2+ {[%emt 0:00:07]} 49. Kf1 {[%emt 0:00:59]} Nxd4 {[%emt 0:00:04]} 50. Rd3 {[%emt 0:00:18]} Nf5 {[%emt 0:00:36]} 51. b5 {[%emt 0:00:42]} cxb5 {[%emt 0:01:05]} 52. c6 {[%emt 0:00:12]} Rc2 {[%emt 0:00:20]} 53. c7 {[%emt 0:00:36]} b4 {[%emt 0:00:31]} 54. Rd8 {[%emt 0:00:41]} Ne7 {[%emt 0:00:04]} 55. Rb8 {[%emt 0:00:33]} Rc4 {[%emt 0:02:43]} 56. Ke2 {[%emt 0:00:29]} h5 {[%emt 0:00:31]} 57. Kd3 {[%emt 0:00:27]} Rc3+ {[%emt 0:00:08]} 58. Kd2 {[%emt 0:00:21]} Rc5 {[%emt 0:02:49]} 59. Rxb4 {[%emt 0:00:38]} Nd5 {[%emt 0:00:02]} 60. Rb7 {[%emt 0:00:32]} h4 {[%emt 0:02:25]} 61. Rb5 {[%emt 0:00:24]} Nxc7 {[%emt 0:00:09]} 62. Rxc5 {[%emt 0:00:13]} Nxe8 {[%emt 0:00:03]} 63. h3 {[%emt 0:00:25]} Ng7 {[%emt 0:00:04]} 64. Ke1 {[%emt 0:00:57]} Ne6 {[%emt 0:00:13]} 65. Rc3 {[%emt 0:00:07]} Nf4 {[%emt 0:00:47]} 66. Kf1 {[%emt 0:00:39]} Kh5 {[%emt 0:00:38]} 67. Ra3 {[%emt 0:00:10]} f5 {[%emt 0:00:44]} 68. Rf3 {[%emt 0:00:34]} Nd5 {[%emt 0:00:05]} 69. Kf2 {[%emt 0:00:47]} Kg6 {[%emt 0:00:03]} 70. Rd3 {[%emt 0:00:27]} Nf4 {[%emt 0:00:01]} 71. Ra3 {[%emt 0:00:39]} Nd5 {[%emt 0:00:50]} 72. Kf3 {[%emt 0:00:31]} Kh5 {[%emt 0:00:24]} 73. Ra5 {[%emt 0:00:39]} Nf4 {[%emt 0:00:11]} 74. Rxf5 {[%emt 0:00:07]} Nxh3 {[%emt 0:00:02]} 75. Rf8 {[%emt 0:00:44]} Ng1+ {[%emt 0:00:44]} 76. Kf2 {[%emt 0:00:10]} Nh3+ {[%emt 0:00:03]} 77. Kf3 {[%emt 0:00:05]} Nf4 {[%emt 0:00:42]} 78. Rxf4 {[%emt 0:00:11]} gxf4 {[%emt 0:00:03]} 79. Kxf4 {[%emt 0:00:05]} h3 {[%emt 0:00:02]} 80. Kg3 {[%emt 0:00:07]} h2 {[%emt 0:00:02]} 81. Kxh2 {[%emt 0:00:07]} 1/2-1/2

[Event "45th National Sub Junior 2019"]
[Site "Tiruchengode"]
[Date "2019.07.11"]
[Round "4.4"]
[White "Devesh Anand Naik"]
[Black "Aaryan Varshney"]
[Result "0-1"]
[ECO "D02"]
[WhiteElo "1943"]
[BlackElo "2284"]
[Annotator "ChessBase"]
[PlyCount "68"]
[EventDate "2019.07.09"]
[EventCountry "IND"]
[SourceTitle "playchess.com"]
[Source "ChessBase"]
[SourceQuality "1"]
[TimeControl "5400+30"]

1. d4 {[%emt 0:00:00]} Nf6 {[%emt 0:00:00]} 2. Bf4 {[%emt 0:00:00]} d5 {[%emt 0:00:03]} 3. e3 {[%emt 0:00:00]} c5 {[%emt 0:01:02]} 4. c3 {[%emt 0:00:00]} Nc6 {[%emt 0:00:21]} 5. Nd2 {[%emt 0:00:41]} e6 {[%emt 0:00:09]} 6. Ngf3 {[%emt 0:00:15]} Bd6 {[%emt 0:00:14]} 7. Bg3 {[%emt 0:00:06]} O-O {[%emt 0:00:17]} 8. Bd3 {[%emt 0:00:09]} b6 {[%emt 0:00:09]} 9. Ne5 {[%emt 0:02:16]} Bb7 {[%emt 0:00:10]} 10. f4 {[%emt 0:01:09]} Ne7 {[%emt 0:00:08]} 11. Bf2 {[%emt 0:02:11]} Ne4 {[%emt 0:00:47]} 12. Qc2 {[%emt 0:04:42]} cxd4 {[%emt 0:02:17]} 13. exd4 {[%emt 0:01:50]} f6 {[%emt 0:00:45]} 14. Ng4 {[%emt 0:17:35]} Nxf2 {[%emt 0:02:06]} 15. Nxf2 {[%emt 0:00:09]} Bxf4 {[%emt 0:01:08]} 16. O-O {[%emt 0:05:56]} e5 {[%emt 0:03:40]} 17. Be2 {[%emt 1:01:31]} Nc6 {[%emt 0:07:16]} 18. Bd3 {[%emt 0:00:00]} Kh8 {[%emt 0:02:09]} 19. Bb5 {[%emt 0:00:00]} Qc7 {[%emt 0:04:56]} 20. Bxc6 {[%emt 0:00:00]} Qxc6 {[%emt 0:02:58]} 21. Nb3 {[%emt 0:00:00]} Ba6 {[%emt 0:00:38]} 22. Rfe1 {[%emt 0:00:00]} e4 {[%emt 0:00:15]} 23. g3 {[%emt 0:00:00]} Bd6 {[%emt 0:00:24]} 24. Qd2 {[%emt 0:00:00]} Rae8 {[%emt 0:00:39]} 25. Qe3 {[%emt 0:00:00]} Qc7 {[%emt 0:01:21]} 26. Nh3 {[%emt 0:00:00]} g5 {[%emt 0:00:42]} 27. Nd2 {[%emt 0:00:00]} h6 {[%emt 0:01:13]} 28. Nf1 {[%emt 0:00:00]} Qd7 {[%emt 0:00:25]} 29. Nf2 {[%emt 0:00:00]} f5 {[%emt 0:00:19]} 30. Qd2 {[%emt 0:00:00]} f4 {[%emt 0:00:26]} 31. g4 {[%emt 0:00:00]} Bxf1 {[%emt 0:00:22]} 32. Kxf1 {[%emt 0:00:00]} e3 {[%emt 0:00:13]} 33. Qd3 {[%emt 0:00:00]} exf2 {[%emt 0:00:12]} 34. Rxe8 {[%emt 0:00:00]} Rxe8 {[%emt 1:09:16]} 0-1